[Event "*** Titled Tuesday Blitz"]
[Site "Chess.com"]
[Date "2019.12.03"]
[Round "6"]
[White "aa175"]
[Black "RiskyDecision"]
[Result "0-1"]
[WhiteElo "2344"]
[BlackElo "2525"]
[TimeControl "180+2"]
[EndTime "14:22:01 PST"]
[Termination "RiskyDecision won by resignation"]

1. d4 {[%clk 0:03:01.9]} 1... f5 {[%clk 0:03:00.3]} 2. c4 {[%clk 0:03:01.7]}
2... Nf6 {[%clk 0:03:01.4]} 3. Nc3 {[%clk 0:03:03.1]} 3... d6 {[%clk 0:03:02.1]}
4. h4 {[%clk 0:02:59.2]} 4... e5 {[%clk 0:03:02]} 5. dxe5 {[%clk 0:02:59.9]}
5... dxe5 {[%clk 0:03:02.2]} 6. Qxd8+ {[%clk 0:03:01.8]} 6... Kxd8 {[%clk
0:03:02.8]} 7. Bg5 {[%clk 0:03:03.7]} 7... c6 {[%clk 0:02:55.4]} 8. Nf3 {[%clk
0:03:01.7]} 8... Bd6 {[%clk 0:02:39.1]} 9. O-O-O {[%clk 0:02:25.6]} 9... Ke7
{[%clk 0:02:38.9]} 10. e4 {[%clk 0:02:09.9]} 10... f4 {[%clk 0:02:29]} 11. h5
{[%clk 0:01:47.1]} 11... Bg4 {[%clk 0:02:12.2]} 12. h6 {[%clk 0:01:39.4]} 12...
Nd7 {[%clk 0:01:16.4]} 13. hxg7 {[%clk 0:01:23]} 13... Rhg8 {[%clk 0:01:16.7]}
14. c5 {[%clk 0:01:20.4]} 14... Bxc5 {[%clk 0:01:07.2]} 15. Rxh7 {[%clk
0:01:16.3]} 15... Kf7 {[%clk 0:00:59.1]} 16. Bc4+ {[%clk 0:01:10.6]} 16... Kg6
{[%clk 0:00:53.8]} 17. Bxg8 {[%clk 0:00:45.6]} 17... Nxh7 {[%clk 0:00:54.2]} 18.
Bxh7+ {[%clk 0:00:13.7]} 18... Kxh7 {[%clk 0:00:53.5]} 19. Rxd7 {[%clk
0:00:13.1]} 19... Bxd7 {[%clk 0:00:52.6]} 20. Nxe5 {[%clk 0:00:12.4]} 20... Be6
{[%clk 0:00:48]} 21. Nd3 {[%clk 0:00:09.5]} 21... Bd4 {[%clk 0:00:44.5]} 22.
Nxf4 {[%clk 0:00:09.5]} 22... Bf7 {[%clk 0:00:42.7]} 23. f3 {[%clk 0:00:03.4]}
23... Kxg7 {[%clk 0:00:39.6]} 24. Nfe2 {[%clk 0:00:04.3]} 24... Bc5 {[%clk
0:00:35.2]} 25. e5 {[%clk 0:00:05.1]} 25... Bg6 {[%clk 0:00:29.9]} 26. Bf6+
{[%clk 0:00:04]} 26... Kf7 {[%clk 0:00:29.7]} 27. Ne4 {[%clk 0:00:03.1]} 27...
Bxe4 {[%clk 0:00:29.4]} 28. fxe4 {[%clk 0:00:05]} 28... Rg8 {[%clk 0:00:29.4]}
29. Nf4 {[%clk 0:00:06]} 29... Be3+ {[%clk 0:00:29.4]} 0-1

[Event "*** Titled Tuesday Blitz"]
[Site "Chess.com"]
[Date "2019.12.03"]
[Round "6"]
[White "HrvojeZagreb"]
[Black "bluejay1897"]
[Result "1-0"]
[WhiteElo "2225"]
[BlackElo "2367"]
[TimeControl "180+2"]
[EndTime "14:22:08 PST"]
[Termination "HrvojeZagreb won by checkmate"]

1. d4 {[%clk 0:03:01.9]} 1... Nf6 {[%clk 0:03:00.4]} 2. Bf4 {[%clk 0:03:02.4]}
2... e6 {[%clk 0:03:00.7]} 3. e3 {[%clk 0:03:03.5]} 3... c5 {[%clk 0:03:00.9]}
4. c3 {[%clk 0:03:00.6]} 4... Nc6 {[%clk 0:03:01.9]} 5. Nd2 {[%clk 0:03:00.8]}
5... d5 {[%clk 0:03:02.4]} 6. Ngf3 {[%clk 0:03:01.1]} 6... Bd6 {[%clk
0:03:03.1]} 7. Bg3 {[%clk 0:03:02.1]} 7... O-O {[%clk 0:03:02.7]} 8. Ne5 {[%clk
0:03:01.9]} 8... Qc7 {[%clk 0:03:01.2]} 9. f4 {[%clk 0:02:56.8]} 9... Ne7 {[%clk
0:03:01.6]} 10. Bd3 {[%clk 0:02:56.1]} 10... Nf5 {[%clk 0:03:02.3]} 11. Bxf5
{[%clk 0:02:54.3]} 11... exf5 {[%clk 0:03:03.7]} 12. Bh4 {[%clk 0:02:27.4]}
12... Ne4 {[%clk 0:02:47.9]} 13. Nxe4 {[%clk 0:02:26.4]} 13... dxe4 {[%clk
0:02:42.7]} 14. Nc4 {[%clk 0:02:17.8]} 14... cxd4 {[%clk 0:02:18.3]} 15. Nxd6
{[%clk 0:02:14.8]} 15... Qxd6 {[%clk 0:01:30.9]} 16. Qxd4 {[%clk 0:02:09.5]}
16... Qa6 {[%clk 0:01:28.2]} 17. c4 {[%clk 0:02:00.7]} 17... Be6 {[%clk
0:01:28.8]} 18. b3 {[%clk 0:02:01.2]} 18... Qa5+ {[%clk 0:01:29.9]} 19. Ke2
{[%clk 0:01:58.2]} 19... f6 {[%clk 0:01:25.6]} 20. Rhd1 {[%clk 0:01:46.8]} 20...
Rfd8 {[%clk 0:01:20.9]} 21. Qb2 {[%clk 0:01:47.5]} 21... Qb6 {[%clk 0:01:17.4]}
22. Rd4 {[%clk 0:01:35.3]} 22... Kf7 {[%clk 0:01:00.5]} 23. Rad1 {[%clk
0:01:34.1]} 23... Ke7 {[%clk 0:00:42.1]} 24. Be1 {[%clk 0:01:27.1]} 24... Bf7
{[%clk 0:00:38.1]} 25. Qa3+ {[%clk 0:01:16.4]} 25... Ke8 {[%clk 0:00:37.4]} 26.
Ba5 {[%clk 0:01:16.2]} 26... Bh5+ {[%clk 0:00:29.9]} 27. Kf2 {[%clk 0:00:43]}
27... Rxd4 {[%clk 0:00:27.7]} 28. Rxd4 {[%clk 0:00:44.5]} 28... Qe6 {[%clk
0:00:21.5]} 29. Qa4+ {[%clk 0:00:36.7]} 29... Kf7 {[%clk 0:00:19.9]} 30. Qd7+
{[%clk 0:00:32.7]} 30... Qe7 {[%clk 0:00:19.1]} 31. Bb4 {[%clk 0:00:30.9]} 31...
Qxd7 {[%clk 0:00:18.7]} 32. Rxd7+ {[%clk 0:00:32.8]} 32... Ke6 {[%clk
0:00:19.9]} 33. Rxg7 {[%clk 0:00:33.2]} 33... Rd8 {[%clk 0:00:20.8]} 34. Rxh7
{[%clk 0:00:33.8]} 34... Bd1 {[%clk 0:00:20.2]} 35. Rxb7 {[%clk 0:00:34.1]}
35... Bc2 {[%clk 0:00:21.4]} 36. Re7# {[%clk 0:00:34.7]} 1-0

[Event "*** Titled Tuesday Blitz"]
[Site "Chess.com"]
[Date "2019.12.03"]
[Round "6"]
[White "nitpicker"]
[Black "chiwii"]
[Result "1-0"]
[WhiteElo "2302"]
[BlackElo "1967"]
[TimeControl "180+2"]
[EndTime "14:22:08 PST"]
[Termination "nitpicker won by resignation"]

1. d4 {[%clk 0:03:01.9]} 1... Nf6 {[%clk 0:03:00.3]} 2. c4 {[%clk 0:03:02]} 2...
g6 {[%clk 0:02:59.5]} 3. Nc3 {[%clk 0:03:02.8]} 3... Bg7 {[%clk 0:02:59.8]} 4.
e4 {[%clk 0:03:03.8]} 4... d6 {[%clk 0:03:00.9]} 5. Be2 {[%clk 0:03:04.8]} 5...
O-O {[%clk 0:03:01.3]} 6. Nf3 {[%clk 0:03:05.7]} 6... e5 {[%clk 0:02:59.9]} 7.
O-O {[%clk 0:03:06.1]} 7... Nc6 {[%clk 0:03:00.5]} 8. d5 {[%clk 0:03:06.7]} 8...
Ne7 {[%clk 0:03:01.6]} 9. b4 {[%clk 0:03:07.8]} 9... Nh5 {[%clk 0:02:58.3]} 10.
g3 {[%clk 0:03:08.3]} 10... f5 {[%clk 0:02:59.5]} 11. Ng5 {[%clk 0:03:09]} 11...
h6 {[%clk 0:02:59.3]} 12. Ne6 {[%clk 0:03:08.8]} 12... Bxe6 {[%clk 0:03:00.2]}
13. dxe6 {[%clk 0:03:10.2]} 13... Nf6 {[%clk 0:03:01.3]} 14. f3 {[%clk
0:03:08.3]} 14... Qc8 {[%clk 0:02:57]} 15. Nd5 {[%clk 0:03:04.1]} 15... Nfxd5
{[%clk 0:02:48.6]} 16. cxd5 {[%clk 0:02:59.7]} 16... Kh7 {[%clk 0:02:46.7]} 17.
Be3 {[%clk 0:02:45.7]} 17... a5 {[%clk 0:02:37]} 18. a3 {[%clk 0:02:34.9]} 18...
axb4 {[%clk 0:01:49.1]} 19. axb4 {[%clk 0:02:36.8]} 19... Rxa1 {[%clk
0:01:50.8]} 20. Qxa1 {[%clk 0:02:37.3]} 20... c6 {[%clk 0:01:52]} 21. Rc1 {[%clk
0:02:29.1]} 21... Qd8 {[%clk 0:01:38]} 22. Qa2 {[%clk 0:02:23.2]} 22... f4
{[%clk 0:01:31.4]} 23. Bf2 {[%clk 0:02:21.5]} 23... fxg3 {[%clk 0:01:28.5]} 24.
hxg3 {[%clk 0:02:21]} 24... Rf6 {[%clk 0:01:14.4]} 25. Kg2 {[%clk 0:02:06.7]}
25... g5 {[%clk 0:01:15]} 26. Be3 {[%clk 0:01:26.8]} 26... cxd5 {[%clk
0:00:48.4]} 27. exd5 {[%clk 0:01:25.7]} 27... Nf5 {[%clk 0:00:46.1]} 28. Bd3
{[%clk 0:01:21.1]} 28... Kh8 {[%clk 0:00:47.3]} 29. Bf2 {[%clk 0:01:18.2]} 29...
Ne7 {[%clk 0:00:46]} 30. Be4 {[%clk 0:01:18.3]} 30... Qf8 {[%clk 0:00:44.3]} 31.
Be3 {[%clk 0:01:10.9]} 31... Qe8 {[%clk 0:00:37.2]} 32. Rc7 {[%clk 0:00:58.2]}
32... Bf8 {[%clk 0:00:35.1]} 33. Qa5 {[%clk 0:00:52.9]} 33... Qh5 {[%clk
0:00:35.2]} 34. g4 {[%clk 0:00:36.9]} 34... Qh4 {[%clk 0:00:33.3]} 35. Bf2
{[%clk 0:00:36.7]} 1-0

[Event "*** Titled Tuesday Blitz"]
[Site "Chess.com"]
[Date "2019.12.03"]
[Round "6"]
[White "rogapa"]
[Black "OparinGrigoriy"]
[Result "1-0"]
[WhiteElo "2727"]
[BlackElo "2985"]
[TimeControl "180+2"]
[EndTime "14:22:13 PST"]
[Termination "rogapa won by resignation"]

1. e4 {[%clk 0:02:59.1]} 1... c6 {[%clk 0:02:58.5]} 2. d4 {[%clk 0:02:59.7]}
2... d5 {[%clk 0:03:00.4]} 3. e5 {[%clk 0:03:00.8]} 3... c5 {[%clk 0:03:01.5]}
4. dxc5 {[%clk 0:03:01.3]} 4... e6 {[%clk 0:03:03.2]} 5. Nf3 {[%clk 0:02:59.6]}
5... Bxc5 {[%clk 0:03:04.3]} 6. Bd3 {[%clk 0:03:00.7]} 6... Ne7 {[%clk
0:03:05.8]} 7. a3 {[%clk 0:03:01.2]} 7... Ng6 {[%clk 0:03:07.1]} 8. O-O {[%clk
0:03:02]} 8... Nc6 {[%clk 0:03:08]} 9. b4 {[%clk 0:02:59.3]} 9... b6 {[%clk
0:03:09.1]} 10. bxc5 {[%clk 0:02:59.2]} 10... bxc5 {[%clk 0:03:07.2]} 11. c4
{[%clk 0:02:51.6]} 11... Ncxe5 {[%clk 0:03:05.6]} 12. Nxe5 {[%clk 0:02:51.3]}
12... Nxe5 {[%clk 0:03:07.5]} 13. cxd5 {[%clk 0:02:51.4]} 13... Nxd3 {[%clk
0:03:08.9]} 14. Qxd3 {[%clk 0:02:50.3]} 14... Qxd5 {[%clk 0:03:10.6]} 15. Qg3
{[%clk 0:02:44.1]} 15... O-O {[%clk 0:03:04.6]} 16. Nc3 {[%clk 0:02:43.6]} 16...
Qd4 {[%clk 0:03:04.4]} 17. Rd1 {[%clk 0:02:42.1]} 17... Qf6 {[%clk 0:03:05.8]}
18. Bf4 {[%clk 0:02:39.1]} 18... Ba6 {[%clk 0:03:02.2]} 19. Be5 {[%clk
0:02:39.1]} 19... Qh6 {[%clk 0:03:03.6]} 20. Rd6 {[%clk 0:02:34.6]} 20... Bc4
{[%clk 0:03:02.4]} 21. Ne4 {[%clk 0:02:19.7]} 21... Rac8 {[%clk 0:03:03.2]} 22.
Bf4 {[%clk 0:01:52.4]} 22... Qg6 {[%clk 0:03:01.4]} 23. Qxg6 {[%clk 0:01:53.3]}
23... hxg6 {[%clk 0:03:03.3]} 24. Rc1 {[%clk 0:01:52.1]} 24... Bd5 {[%clk
0:03:03.4]} 25. Nxc5 {[%clk 0:01:48.4]} 25... Rfe8 {[%clk 0:02:40.2]} 26. h4
{[%clk 0:01:42.4]} 26... f6 {[%clk 0:02:40.7]} 27. f3 {[%clk 0:01:38.5]} 27...
Ba2 {[%clk 0:02:36.5]} 28. Rd7 {[%clk 0:01:29.6]} 28... e5 {[%clk 0:02:34.1]}
29. Be3 {[%clk 0:01:30.4]} 29... a5 {[%clk 0:02:24.9]} 30. Rc2 {[%clk
0:01:26.5]} 30... Bf7 {[%clk 0:02:20.9]} 31. Rb2 {[%clk 0:01:26.4]} 31... Red8
{[%clk 0:02:21.4]} 32. Ra7 {[%clk 0:01:21.5]} 32... Rd1+ {[%clk 0:02:21.2]} 33.
Kf2 {[%clk 0:01:19.9]} 33... f5 {[%clk 0:02:20.3]} 34. Rbb7 {[%clk 0:01:02.3]}
34... Rf8 {[%clk 0:01:25.8]} 35. Nd7 {[%clk 0:00:55.1]} 35... Bd5 {[%clk
0:01:11]} 36. Rc7 {[%clk 0:00:42.3]} 36... Re8 {[%clk 0:00:47.7]} 37. Nf6+
{[%clk 0:00:36.4]} 37... gxf6 {[%clk 0:00:43.8]} 38. Rg7+ {[%clk 0:00:36.9]}
38... Kh8 {[%clk 0:00:44.8]} 39. Rh7+ {[%clk 0:00:37.7]} 39... Kg8 {[%clk
0:00:46.7]} 40. Rag7+ {[%clk 0:00:38.6]} 40... Kf8 {[%clk 0:00:48.6]} 41. Bc5+
{[%clk 0:00:39.8]} 41... Re7 {[%clk 0:00:50.5]} 1-0

[Event "*** Titled Tuesday Blitz"]
[Site "Chess.com"]
[Date "2019.12.03"]
[Round "6"]
[White "TigranLPetrosyan"]
[Black "Joshukid"]
[Result "1-0"]
[WhiteElo "2883"]
[BlackElo "2636"]
[TimeControl "180+2"]
[EndTime "14:22:17 PST"]
[Termination "TigranLPetrosyan won by resignation"]

1. g3 {[%clk 0:00:07]} 1... d5 {[%clk 0:02:58.8]} 2. Bg2 {[%clk 0:00:08.9]} 2...
c6 {[%clk 0:03:00.7]} 3. Nf3 {[%clk 0:00:10.4]} 3... Nf6 {[%clk 0:03:02.6]} 4.
O-O {[%clk 0:00:12.2]} 4... g6 {[%clk 0:03:04.5]} 5. d3 {[%clk 0:00:14.1]} 5...
Bg7 {[%clk 0:03:06.4]} 6. Nbd2 {[%clk 0:00:16]} 6... O-O {[%clk 0:03:08.3]} 7.
e4 {[%clk 0:00:17.7]} 7... dxe4 {[%clk 0:03:10.2]} 8. dxe4 {[%clk 0:00:19.6]}
8... Bg4 {[%clk 0:03:11.4]} 9. Re1 {[%clk 0:00:20.8]} 9... Nbd7 {[%clk
0:03:12.7]} 10. h3 {[%clk 0:00:22.4]} 10... Bxf3 {[%clk 0:03:13.6]} 11. Qxf3
{[%clk 0:00:24]} 11... e6 {[%clk 0:03:08.9]} 12. Qe2 {[%clk 0:00:25.8]} 12...
Qa5 {[%clk 0:03:01.8]} 13. e5 {[%clk 0:00:25.8]} 13... Nd5 {[%clk 0:03:00.2]}
14. Nf3 {[%clk 0:00:22]} 14... b5 {[%clk 0:02:55.9]} 15. h4 {[%clk 0:00:22.3]}
15... h6 {[%clk 0:02:52.2]} 16. Bd2 {[%clk 0:00:23.5]} 16... Qb6 {[%clk
0:02:49.7]} 17. Rad1 {[%clk 0:00:17]} 17... c5 {[%clk 0:02:48.1]} 18. h5 {[%clk
0:00:17.9]} 18... g5 {[%clk 0:02:48.7]} 19. Qe4 {[%clk 0:00:17.5]} 19... Rfe8
{[%clk 0:02:47.4]} 20. Bxg5 {[%clk 0:00:17.4]} 20... hxg5 {[%clk 0:02:45.5]} 21.
Nxg5 {[%clk 0:00:19.3]} 21... Nf8 {[%clk 0:02:46.4]} 22. Qg4 {[%clk 0:00:20.3]}
22... f5 {[%clk 0:02:39.9]} 23. exf6 {[%clk 0:00:20.4]} 23... Nxf6 {[%clk
0:02:41.1]} 24. Qh4 {[%clk 0:00:21.8]} 24... Rad8 {[%clk 0:02:27.7]} 25. h6
{[%clk 0:00:21.2]} 25... Ng6 {[%clk 0:02:28.2]} 26. Qh3 {[%clk 0:00:21.6]} 26...
Bh8 {[%clk 0:02:24.2]} 27. Rxd8 {[%clk 0:00:19.6]} 27... Qxd8 {[%clk 0:02:24.9]}
28. Rxe6 {[%clk 0:00:20.5]} 28... Qd1+ {[%clk 0:02:23.2]} 29. Bf1 {[%clk
0:00:20.3]} 29... Rf8 {[%clk 0:02:06.2]} 30. Qf5 {[%clk 0:00:19.4]} 30... Qh5
{[%clk 0:02:00.1]} 31. Bxb5 {[%clk 0:00:18.9]} 31... Qxh6 {[%clk 0:01:51.1]} 32.
Bc4 {[%clk 0:00:19.3]} 32... Kg7 {[%clk 0:01:50.8]} 33. Rc6 {[%clk 0:00:17.5]}
33... Ne7 {[%clk 0:01:45.8]} 34. Ne6+ {[%clk 0:00:16.5]} 34... Kf7 {[%clk
0:01:38.8]} 35. Rc7 {[%clk 0:00:15.3]} 35... Rb8 {[%clk 0:01:28.4]} 36. Nxc5+
{[%clk 0:00:13.6]} 36... Ke8 {[%clk 0:01:23.7]} 37. Rxe7+ {[%clk 0:00:14.5]}
37... Kxe7 {[%clk 0:01:24.1]} 38. Qe6+ {[%clk 0:00:15.7]} 38... Kd8 {[%clk
0:01:23.4]} 39. Qd6+ {[%clk 0:00:17]} 39... Ke8 {[%clk 0:01:19.1]} 40. Qxb8+
{[%clk 0:00:17.8]} 40... Ke7 {[%clk 0:01:19.9]} 41. Qc7+ {[%clk 0:00:19]} 41...
Ke8 {[%clk 0:01:19.1]} 42. Bf7+ {[%clk 0:00:19.8]} 1-0

[Event "*** Titled Tuesday Blitz"]
[Site "Chess.com"]
[Date "2019.12.03"]
[Round "6"]
[White "Kawhi_Leonard2"]
[Black "Jbd735"]
[Result "0-1"]
[WhiteElo "2273"]
[BlackElo "2434"]
[TimeControl "180+2"]
[EndTime "14:22:21 PST"]
[Termination "Jbd735 won by resignation"]

1. e4 {[%clk 0:03:01.9]} 1... e5 {[%clk 0:03:00.6]} 2. Nf3 {[%clk 0:03:02.8]}
2... Nc6 {[%clk 0:03:01.8]} 3. Bb5 {[%clk 0:03:04]} 3... a6 {[%clk 0:03:02.4]}
4. Bxc6 {[%clk 0:03:05.3]} 4... dxc6 {[%clk 0:03:03.4]} 5. O-O {[%clk
0:03:07.1]} 5... f6 {[%clk 0:03:03.2]} 6. d4 {[%clk 0:03:07.3]} 6... exd4 {[%clk
0:03:04.3]} 7. Nxd4 {[%clk 0:03:08.9]} 7... c5 {[%clk 0:03:05.1]} 8. Ne2 {[%clk
0:03:10.1]} 8... Qxd1 {[%clk 0:03:05.3]} 9. Rxd1 {[%clk 0:03:12]} 9... Bd7
{[%clk 0:03:04.9]} 10. Nbc3 {[%clk 0:03:13.2]} 10... O-O-O {[%clk 0:03:03.8]}
11. f3 {[%clk 0:03:14.6]} 11... Ne7 {[%clk 0:02:45.6]} 12. Nf4 {[%clk
0:03:14.2]} 12... Ng6 {[%clk 0:02:14]} 13. Ncd5 {[%clk 0:03:00.6]} 13... Ne5
{[%clk 0:02:03]} 14. b3 {[%clk 0:02:55.3]} 14... Bc6 {[%clk 0:01:36.3]} 15. Bb2
{[%clk 0:02:48.2]} 15... Bxd5 {[%clk 0:01:25.4]} 16. Nxd5 {[%clk 0:02:34.5]}
16... Bd6 {[%clk 0:01:18.7]} 17. Rd2 {[%clk 0:02:31.9]} 17... c4 {[%clk
0:01:10]} 18. Rad1 {[%clk 0:02:20.3]} 18... cxb3 {[%clk 0:01:09.6]} 19. axb3
{[%clk 0:02:20.8]} 19... Bc5+ {[%clk 0:01:08.1]} 20. Kf1 {[%clk 0:02:20.2]}
20... c6 {[%clk 0:01:07.6]} 21. Bxe5 {[%clk 0:02:01.5]} 21... fxe5 {[%clk
0:00:58.7]} 22. Nc3 {[%clk 0:01:57.9]} 22... Rxd2 {[%clk 0:00:45.1]} 23. Rxd2
{[%clk 0:01:59.7]} 23... b5 {[%clk 0:00:45.1]} 24. Ke2 {[%clk 0:01:49.6]} 24...
Kc7 {[%clk 0:00:44.2]} 25. Nd1 {[%clk 0:01:36.6]} 25... a5 {[%clk 0:00:35.2]}
26. Nb2 {[%clk 0:01:37.2]} 26... Ra8 {[%clk 0:00:30.2]} 27. c3 {[%clk 0:01:33]}
27... a4 {[%clk 0:00:27.5]} 28. b4 {[%clk 0:01:34.3]} 28... a3 {[%clk
0:00:21.5]} 29. Nd3 {[%clk 0:01:34.1]} 29... a2 {[%clk 0:00:21.1]} 30. Rd1
{[%clk 0:01:32.1]} 30... a1=Q {[%clk 0:00:16.2]} 31. Rxa1 {[%clk 0:01:32.9]}
31... Rxa1 {[%clk 0:00:17.6]} 32. Nxc5 {[%clk 0:01:34.2]} 32... Ra2+ {[%clk
0:00:15.5]} 33. Kf1 {[%clk 0:01:33.5]} 33... Rc2 {[%clk 0:00:15.2]} 34. Ne6+
{[%clk 0:01:29.4]} 34... Kd7 {[%clk 0:00:14.7]} 35. Nxg7 {[%clk 0:01:30.4]}
35... Rxc3 {[%clk 0:00:15.1]} 36. Nh5 {[%clk 0:01:23.5]} 36... Rc4 {[%clk
0:00:13.1]} 37. Nf6+ {[%clk 0:01:23.8]} 37... Ke6 {[%clk 0:00:14]} 38. Nxh7
{[%clk 0:01:24.9]} 38... Rxb4 {[%clk 0:00:15.2]} 39. h4 {[%clk 0:01:22.7]} 39...
Rb1+ {[%clk 0:00:15.3]} 40. Kf2 {[%clk 0:01:23]} 40... b4 {[%clk 0:00:16.6]} 41.
Ng5+ {[%clk 0:01:23.3]} 41... Kf6 {[%clk 0:00:16.9]} 42. f4 {[%clk 0:01:15.3]}
42... exf4 {[%clk 0:00:17.6]} 43. Nf3 {[%clk 0:01:16.4]} 43... b3 {[%clk
0:00:16.6]} 44. e5+ {[%clk 0:01:08.9]} 44... Kf5 {[%clk 0:00:13.3]} 45. h5
{[%clk 0:01:07.9]} 45... b2 {[%clk 0:00:11.6]} 0-1

[Event "*** Titled Tuesday Blitz"]
[Site "Chess.com"]
[Date "2019.12.03"]
[Round "6"]
[White "Bulldog167"]
[Black "Leonid_Starozhilov"]
[Result "1-0"]
[WhiteElo "2899"]
[BlackElo "2673"]
[TimeControl "180+2"]
[EndTime "14:22:22 PST"]
[Termination "Bulldog167 won by resignation"]

1. d4 {[%clk 0:03:01.9]} 1... Nf6 {[%clk 0:03:01]} 2. c4 {[%clk 0:03:03.5]} 2...
g6 {[%clk 0:03:02.5]} 3. Nc3 {[%clk 0:03:04.7]} 3... Bg7 {[%clk 0:03:04.1]} 4.
e4 {[%clk 0:03:06.3]} 4... d6 {[%clk 0:03:05.8]} 5. h3 {[%clk 0:03:07.8]} 5...
O-O {[%clk 0:03:07.1]} 6. Be3 {[%clk 0:03:09.4]} 6... c5 {[%clk 0:03:08]} 7. Nf3
{[%clk 0:03:10.2]} 7... cxd4 {[%clk 0:03:08.3]} 8. Nxd4 {[%clk 0:03:12.1]} 8...
Nc6 {[%clk 0:03:09.8]} 9. Be2 {[%clk 0:03:13.1]} 9... Bd7 {[%clk 0:03:10.2]} 10.
O-O {[%clk 0:03:13.7]} 10... a6 {[%clk 0:03:11.3]} 11. Rc1 {[%clk 0:03:08.9]}
11... Nxd4 {[%clk 0:03:12.5]} 12. Bxd4 {[%clk 0:03:10]} 12... Bc6 {[%clk
0:03:14.4]} 13. Qc2 {[%clk 0:03:08.2]} 13... Rc8 {[%clk 0:03:10.4]} 14. a4
{[%clk 0:03:01.8]} 14... a5 {[%clk 0:03:02.5]} 15. Rcd1 {[%clk 0:03:01.5]} 15...
Nd7 {[%clk 0:03:01.5]} 16. Bxg7 {[%clk 0:02:55.1]} 16... Kxg7 {[%clk 0:03:03.4]}
17. Bg4 {[%clk 0:02:56.1]} 17... e6 {[%clk 0:01:49.5]} 18. Rxd6 {[%clk
0:02:54.4]} 18... Qc7 {[%clk 0:01:36.3]} 19. Rfd1 {[%clk 0:02:55.1]} 19... Rfd8
{[%clk 0:01:17.1]} 20. Qd2 {[%clk 0:02:51.3]} 20... Re8 {[%clk 0:01:01.7]} 21.
Rxd7 {[%clk 0:02:39.1]} 21... Bxd7 {[%clk 0:01:03.6]} 22. Qxd7 {[%clk
0:02:40.4]} 22... Qxc4 {[%clk 0:01:04.9]} 23. Be2 {[%clk 0:02:25.9]} 23... Qc5
{[%clk 0:00:40.3]} 24. Kf1 {[%clk 0:02:14.4]} 24... Red8 {[%clk 0:00:33]} 25.
Qxd8 {[%clk 0:02:14.6]} 25... Rxd8 {[%clk 0:00:32.2]} 26. Rxd8 {[%clk
0:02:16.5]} 26... Qb4 {[%clk 0:00:32.5]} 27. Rd2 {[%clk 0:02:15.5]} 27... h5
{[%clk 0:00:33.3]} 28. h4 {[%clk 0:02:16]} 28... Qb6 {[%clk 0:00:30.9]} 29. g3
{[%clk 0:02:15.6]} 29... Qb4 {[%clk 0:00:31.6]} 30. Kg2 {[%clk 0:02:15.9]} 30...
Qb3 {[%clk 0:00:31.8]} 31. Bb5 {[%clk 0:02:11]} 31... Qb4 {[%clk 0:00:32]} 32.
Re2 {[%clk 0:02:11.2]} 32... Qb3 {[%clk 0:00:30.4]} 33. e5 {[%clk 0:02:07.1]}
33... Qb4 {[%clk 0:00:30.6]} 34. Ne4 {[%clk 0:02:07.8]} 34... Qd4 {[%clk
0:00:22.1]} 35. Ng5 {[%clk 0:02:01.4]} 35... Qd5+ {[%clk 0:00:16.7]} 36. Re4
{[%clk 0:02:00.4]} 36... b6 {[%clk 0:00:17]} 37. Kh2 {[%clk 0:01:54.9]} 37...
Qd2 {[%clk 0:00:17.6]} 38. Rf4 {[%clk 0:01:56.1]} 38... Qxb2 {[%clk 0:00:14.9]}
39. Rxf7+ {[%clk 0:01:57.1]} 39... Kg8 {[%clk 0:00:16.4]} 40. Bd3 {[%clk
0:01:37.5]} 40... Qxe5 {[%clk 0:00:13.8]} 41. Bxg6 {[%clk 0:01:37.9]} 41... b5
{[%clk 0:00:15.3]} 42. Bh7+ {[%clk 0:01:32.3]} 42... Kh8 {[%clk 0:00:15.6]} 43.
Rb7 {[%clk 0:01:12.3]} 43... Qc5 {[%clk 0:00:12.3]} 44. Rb8+ {[%clk 0:01:11]}
1-0

[Event "*** Titled Tuesday Blitz"]
[Site "Chess.com"]
[Date "2019.12.03"]
[Round "6"]
[White "x-3738459472"]
[Black "Eloist"]
[Result "0-1"]
[WhiteElo "2532"]
[BlackElo "2401"]
[TimeControl "180+2"]
[EndTime "14:22:33 PST"]
[Termination "Eloist won by resignation"]

1. e4 {[%clk 0:02:39.9]} 1... e6 {[%clk 0:03:00.6]} 2. d4 {[%clk 0:02:40.3]}
2... d5 {[%clk 0:03:01.4]} 3. Nd2 {[%clk 0:02:42.2]} 3... Nf6 {[%clk 0:03:01.5]}
4. e5 {[%clk 0:02:43.6]} 4... Nfd7 {[%clk 0:03:02.5]} 5. Bd3 {[%clk 0:02:45.5]}
5... c5 {[%clk 0:03:03.5]} 6. c3 {[%clk 0:02:47.2]} 6... b6 {[%clk 0:03:04.8]}
7. Qe2 {[%clk 0:02:45.4]} 7... cxd4 {[%clk 0:03:04.9]} 8. cxd4 {[%clk 0:02:46]}
8... Nc6 {[%clk 0:03:06]} 9. Ngf3 {[%clk 0:02:46.6]} 9... Nb4 {[%clk 0:03:06.7]}
10. O-O {[%clk 0:02:47.4]} 10... Nxd3 {[%clk 0:03:06.8]} 11. Qxd3 {[%clk
0:02:48.6]} 11... a5 {[%clk 0:03:07.6]} 12. Re1 {[%clk 0:02:45.4]} 12... Ba6
{[%clk 0:03:08.3]} 13. Qe3 {[%clk 0:02:46.2]} 13... Bb4 {[%clk 0:02:53.4]} 14.
a3 {[%clk 0:02:46.9]} 14... Be7 {[%clk 0:02:52.5]} 15. Nf1 {[%clk 0:02:46.2]}
15... Bxf1 {[%clk 0:02:42.1]} 16. Rxf1 {[%clk 0:02:46]} 16... O-O {[%clk
0:02:31.1]} 17. Bd2 {[%clk 0:02:34.2]} 17... b5 {[%clk 0:02:27.9]} 18. Rac1
{[%clk 0:02:27.4]} 18... Nb6 {[%clk 0:02:28.5]} 19. Qd3 {[%clk 0:02:14.1]} 19...
Nc4 {[%clk 0:02:25.1]} 20. Rb1 {[%clk 0:02:14.6]} 20... Rc8 {[%clk 0:02:13.8]}
21. Rfc1 {[%clk 0:02:14.9]} 21... h6 {[%clk 0:02:05.8]} 22. g3 {[%clk 0:02:14]}
22... Qb6 {[%clk 0:02:03.4]} 23. Kg2 {[%clk 0:02:09.1]} 23... Rc6 {[%clk
0:02:00.7]} 24. Be1 {[%clk 0:01:58.9]} 24... Rfc8 {[%clk 0:02:00.6]} 25. Qe2
{[%clk 0:01:53.4]} 25... a4 {[%clk 0:01:45.1]} 26. Bc3 {[%clk 0:01:47.4]} 26...
b4 {[%clk 0:01:34.8]} 27. axb4 {[%clk 0:01:44.7]} 27... Bxb4 {[%clk 0:01:36.1]}
28. Bxb4 {[%clk 0:01:37.4]} 28... Qxb4 {[%clk 0:01:36.7]} 29. Qd3 {[%clk
0:01:24.4]} 29... Nxb2 {[%clk 0:01:28]} 30. Rxc6 {[%clk 0:01:17]} 30... Rxc6
{[%clk 0:01:28.8]} 31. Qe2 {[%clk 0:01:15.1]} 31... a3 {[%clk 0:01:28.9]} 32.
Ne1 {[%clk 0:01:15]} 32... Qb3 {[%clk 0:01:24.1]} 33. h4 {[%clk 0:01:06.2]}
33... Qc3 {[%clk 0:01:12.1]} 34. Qb5 {[%clk 0:01:02.8]} 34... Rc8 {[%clk
0:00:54.3]} 35. Qa6 {[%clk 0:01:02.2]} 35... Rb8 {[%clk 0:00:37.7]} 36. Nf3
{[%clk 0:00:58.3]} 36... Rb3 {[%clk 0:00:29.9]} 37. Qa8+ {[%clk 0:00:57.4]}
37... Kh7 {[%clk 0:00:30]} 38. Ng1 {[%clk 0:00:45.9]} 38... Qxd4 {[%clk
0:00:28]} 39. Ra1 {[%clk 0:00:47.2]} 39... Nc4 {[%clk 0:00:24.6]} 40. Ra2 {[%clk
0:00:46.2]} 40... Rb2 {[%clk 0:00:21.7]} 41. Rxb2 {[%clk 0:00:44.8]} 41... axb2
{[%clk 0:00:22.4]} 42. Qb8 {[%clk 0:00:39.4]} 42... Qe4+ {[%clk 0:00:22.1]} 0-1